bitfinex-derivatives/quotes_BTCF0:USTF0_20241226
["timestamp","ask_amount","ask_price","bid_price","bid_amount"]
[1735183343696,0.00339574,98762.0,98761.0,0.760536]
[1735183344299,0.002,98774.0,98761.0,0.72]
[1735183344504,0.002,98774.0,98769.0,0.040532]
[1735183344705,0.52676901,98779.0,98773.0,4e-05]
[1735183344909,0.04053,98775.0,98773.0,4e-05]
[1735183345100,0.040531,98772.0,98761.0,0.72]
[1735183345295,0.040532,98770.0,98761.0,0.72]
[1735183345806,0.040532,98770.0,98763.0,0.24228437]
[1735183346006,0.3608,98771.0,98763.0,0.24228437]
[1735183346811,0.3608,98771.0,98762.0,0.040535]
[1735183347012,0.001,98770.0,98762.0,0.040535]
[1735183348014,0.3628,98771.0,98762.0,0.040535]
[1735183348417,0.3628,98771.0,98770.0,4e-05]
[1735183348613,0.3608,98771.0,98770.0,4e-05]
[1735183349921,0.3618,98771.0,98770.0,4e-05]
[1735183350312,0.003,98771.0,98770.0,4e-05]
[1735183352524,0.3608,98790.0,98788.0,0.040525]
[1735183352726,0.3608,98790.0,98789.0,0.72]
[1735183353028,0.3608,98790.0,98789.0,0.72004]
[1735183353216,0.061,98798.0,98789.0,4e-05]
[1735183353622,0.061,98798.0,98796.0,0.040521]
[1735183353812,0.1,98800.0,98798.0,0.040521]
[1735183354317,0.1,98800.0,98799.0,4e-05]
[1735183355425,0.0632,98816.0,98800.0,0.040519]
[1735183355623,0.0632,98816.0,98799.0,0.47022584]
[1735183355624,0.0632,98816.0,98808.0,0.3608]
[1735183355923,0.0632,98816.0,98815.0,4e-05]
[1735183357329,0.0662,98816.0,98815.0,4e-05]
[1735183357832,0.0662,98816.0,98793.0,0.24228437]
[1735183357833,0.040519,98802.0,98793.0,0.24228437]
[1735183358016,0.1171,98801.0,98791.0,0.040523]
[1735183358219,0.15762,98801.0,98791.0,0.040523]
[1735183358424,0.04052,98799.0,98791.0,0.040523]
[1735183359633,0.3608,98796.0,98791.0,0.040523]
[1735183360643,0.040524,98791.0,98786.0,0.00991998]
[1735183360824,0.040524,98791.0,98781.0,0.28281137]
[1735183361023,0.040525,98787.0,98781.0,0.24228437]
[1735183362132,0.040526,98786.0,98781.0,0.25221947]
[1735183362323,0.040526,98786.0,98781.0,0.97221947]
[1735183362519,0.040526,98786.0,98781.0,0.25221947]
[1735183362726,0.040526,98786.0,98781.0,0.0099351]
[1735183363031,0.040526,98786.0,98779.0,0.3608]
[1735183363431,0.040526,98786.0,98781.0,0.001]
[1735183363834,0.041526,98786.0,98781.0,0.001]
[1735183364037,0.041526,98786.0,98779.0,0.3608]
[1735183364230,0.041526,98786.0,98779.0,0.37180868]
[1735183364932,0.040527,98784.0,98781.0,0.001]
[1735183365429,0.0611,98783.0,98781.0,0.001]
[1735183366530,0.0611,98783.0,98781.0,0.002]
[1735183366736,0.0611,98783.0,98781.0,0.001]
[1735183367635,0.0611,98783.0,98781.0,0.002]
[1735183368426,0.0611,98783.0,98782.0,0.72]
[1735183370332,0.0611,98783.0,98782.0,0.721]
[1735183370927,0.0611,98783.0,98782.0,0.72]
[1735183372130,0.0621,98783.0,98782.0,0.72]
[1735183372535,0.0611,98783.0,98782.0,0.72]
[1735183372735,0.0621,98783.0,98782.0,0.72]
[1735183374134,0.040528,98779.0,98777.0,0.01025663]
[1735183374438,0.040528,98779.0,98770.0,0.3608]
[1735183374640,0.0621,98783.0,98771.0,0.72]
[1735183374838,0.040529,98778.0,98771.0,0.72]
[1735183375737,0.040529,98778.0,98777.0,0.002]
[1735183376241,0.040529,98778.0,98777.0,0.001]
[1735183376440,0.040529,98778.0,98771.0,0.72556]
[1735183376647,0.040529,98778.0,98771.0,0.725]
[1735183376938,0.040529,98778.0,98777.0,0.001]
[1735183377243,0.040529,98778.0,98777.0,0.002]
[1735183378339,0.040529,98778.0,98777.0,0.001]
[1735183378542,0.040529,98778.0,98777.0,0.002]
[1735183384835,0.3608,98780.0,98770.0,0.009901]
[1735183385144,0.040531,98774.0,98768.0,0.72068999]
[1735183385438,0.040531,98774.0,98768.0,0.72012999]
[1735183385643,0.040528,98779.0,98768.0,0.72012999]
[1735183385845,0.040531,98773.0,98768.0,0.72012999]
[1735183386044,0.040531,98773.0,98770.0,0.005]
[1735183386733,0.040531,98773.0,98770.0,0.002]
[1735183387745,0.040531,98773.0,98768.0,0.73571279]
[1735183387938,0.040531,98773.0,98768.0,0.73519279]
[1735183388138,0.040529,98778.0,98768.0,0.73519279]
[1735183388438,0.04053,98776.0,98770.0,0.002]
[1735183388638,0.04053,98776.0,98770.0,0.004]
[1735183388939,0.04053,98776.0,98770.0,0.002]
[1735183389341,0.04053,98776.0,98768.0,0.73579279]
[1735183389542,0.04053,98776.0,98770.0,0.24228437]
[1735183389742,0.04053,98776.0,98770.0,0.24428437]
[1735183390337,0.3608,98780.0,98770.0,0.28481637]
[1735183390735,0.401328,98780.0,98770.0,0.28481637]
[1735183390938,0.401328,98780.0,98771.0,0.24228437]
[1735183391259,0.040529,98779.0,98771.0,0.24228437]
[1735183391837,0.3608,98780.0,98771.0,0.24228437]
[1735183392045,0.040529,98778.0,98771.0,0.24228437]
[1735183392247,0.040529,98778.0,98772.0,0.24228437]
[1735183392747,0.040529,98777.0,98772.0,0.24228437]
[1735183392946,0.04053,98776.0,98772.0,0.24228437]
[1735183394237,0.04053,98776.0,98772.0,0.24428437]
[1735183394835,0.04053,98776.0,98775.0,0.18215343]
[1735183395244,0.12224707,98777.0,98775.0,0.22268343]
[1735183395440,0.12108707,98777.0,98775.0,0.22268343]
[1735183395638,0.36196,98789.0,98788.0,0.040525]
[1735183395842,0.3608,98789.0,98788.0,0.040525]
[1735183396039,0.3608,98789.0,98788.0,0.760565]
[1735183396239,0.040519,98803.0,98788.0,1.08084]
[1735183396439,0.3608,98808.0,98790.0,0.17735162]
[1735183396638,0.3608,98808.0,98802.0,4e-05]
[1735183396838,0.3608,98808.0,98807.0,4e-05]
[1735183397640,0.040516,98810.0,98807.0,4e-05]
[1735183398143,0.040516,98810.0,98809.0,4e-05]
[1735183398743,0.044516,98810.0,98809.0,4e-05]
[1735183399449,0.040516,98810.0,98809.0,4e-05]
[1735183399645,0.044516,98810.0,98809.0,4e-05]
[1735183399848,0.004,98810.0,98809.0,4e-05]
[1735183400249,0.005,98810.0,98809.0,0.00104]
[1735183401643,0.005,98810.0,98809.0,0.01125097]
[1735183404757,0.3658,98810.0,98809.0,0.00104]
[1735183405958,0.406316,98810.0,98809.0,0.00104]
[1735183412562,0.005,98810.0,98809.0,0.00104]
[1735183413066,0.005,98810.0,98809.0,0.72104]
[1735183415766,0.005,98810.0,98809.0,0.00104]
[1735183418362,0.005,98810.0,98809.0,0.72104]
[1735183419556,0.005,98810.0,98809.0,0.00104]
[1735183422669,0.005,98810.0,98809.0,0.72104]
[1735183425074,0.005,98810.0,98809.0,0.00104]
[1735183425275,0.3658,98810.0,98809.0,0.00104]
[1735183426473,0.040516,98809.0,98808.0,0.18215459]
[1735183427075,0.040519,98802.0,98801.0,0.18215459]
[1735183427674,0.401319,98802.0,98801.0,0.18215459]
[1735183428872,0.402319,98802.0,98801.0,0.001]
[1735183429579,0.405319,98802.0,98801.0,0.001]
[1735183429969,0.55667476,98802.0,98801.0,0.001]
[1735183431466,0.46486677,98802.0,98801.0,0.001]
[1735183431873,0.46486677,98802.0,98782.0,0.18215459]
[1735183432169,0.040527,98784.0,98782.0,0.18215459]
[1735183432784,0.040527,98784.0,98779.0,0.94328259]
[1735183432968,0.3608,98786.0,98779.0,0.90215459]
[1735183433277,0.3608,98786.0,98785.0,4e-05]
[1735183434379,0.3618,98786.0,98785.0,4e-05]
[1735183435278,0.3648,98786.0,98785.0,0.01028469]
[1735183439175,0.3648,98786.0,98785.0,4e-05]
[1735183439368,0.4254,98786.0,98785.0,4e-05]
[1735183441369,0.4254,98786.0,98785.0,0.72004]
[1735183442781,0.4254,98786.0,98785.0,4e-05]
[1735183448980,0.3648,98786.0,98785.0,4e-05]
[1735183449181,0.004,98786.0,98785.0,0.040566]
[1735183449385,0.004,98786.0,98785.0,0.14756231]
[1735183449684,0.004,98786.0,98785.0,0.86756231]
[1735183449880,0.004,98786.0,98785.0,1.22836231]
[1735183452080,0.004,98786.0,98785.0,1.47123509]
[1735183452986,0.004,98786.0,98785.0,0.60371278]
[1735183453582,0.004,98786.0,98785.0,0.36084]
[1735183455092,0.004,98786.0,98785.0,4e-05]
[1735183456794,0.09463389,98786.0,98785.0,4e-05]
[1735183458382,0.14142694,98791.0,98790.0,0.040524]
[1735183458581,0.09648958,98791.0,98790.0,0.055724]
[1735183458793,0.09648958,98791.0,98790.0,0.84703436]
[1735183459394,0.061,98807.0,98790.0,0.80651036]
[1735183459395,0.09074863,98798.0,98790.0,0.80651036]
[1735183459600,0.09074863,98798.0,98797.0,0.040521]
[1735183459983,0.09074863,98798.0,98797.0,0.040561]
[1735183460592,0.09274863,98798.0,98797.0,0.040561]
[1735183460899,0.005,98798.0,98797.0,0.28317225]
[1735183462097,0.005,98798.0,98797.0,0.040561]
[1735183462597,0.003,98798.0,98797.0,0.040561]
[1735183462799,0.005,98798.0,98797.0,0.040561]
[1735183463189,0.005,98798.0,98797.0,0.15257145]
[1735183463698,0.005,98798.0,98797.0,0.16285986]
[1735183465102,0.005,98798.0,98797.0,0.05084941]
[1735183465300,0.005,98798.0,98797.0,0.01032841]
[1735183466098,0.005,98798.0,98796.0,0.15015415]
[1735183466401,0.005,98798.0,98770.0,0.42502737]
[1735183466402,0.040522,98795.0,98794.0,0.05775415]
[1735183466601,0.401322,98795.0,98794.0,0.05775415]
[1735183467894,0.040525,98789.0,98782.0,0.18190541]
[1735183468093,0.3608,98785.0,98782.0,0.18190541]
[1735183469002,0.3608,98785.0,98781.0,0.69061893]
[1735183469003,0.3608,98785.0,98781.0,0.87252434]
[1735183469301,0.3608,98785.0,98781.0,0.87196434]
[1735183471706,0.3608,98785.0,98782.0,0.18190541]
[1735183473905,0.09063333,98788.0,98784.0,0.040526]
[1735183474297,0.09063333,98788.0,98787.0,4e-05]
[1735183476301,0.09063333,98789.0,98787.0,4e-05]
[1735183476703,0.09063333,98789.0,98788.0,4e-05]
[1735183477908,0.09163333,98789.0,98788.0,4e-05]
[1735183480008,0.001,98789.0,98788.0,0.18194541]
[1735183480813,0.13115633,98793.0,98788.0,0.18394541]
[1735183481215,0.13115633,98793.0,98788.0,0.18694541]
[1735183481415,0.040523,98793.0,98788.0,0.00504]
[1735183481714,0.040523,98793.0,98788.0,0.00604]
[1735183482216,0.040523,98793.0,98792.0,4e-05]
[1735183483513,0.040523,98793.0,98792.0,0.00204]
[1735183484217,0.040523,98793.0,98792.0,0.00404]
[1735183484603,0.13115633,98793.0,98792.0,0.00404]
[1735183485015,0.13115633,98793.0,98792.0,0.00304]
[1735183485410,0.13115633,98793.0,98792.0,0.00204]
[1735183485612,0.13115633,98793.0,98792.0,0.00304]
[1735183485915,0.13115633,98793.0,98792.0,0.0120245]
[1735183486111,0.13115633,98793.0,98792.0,0.00204]
[1735183488514,0.040523,98793.0,98792.0,0.00204]
[1735183490322,0.040523,98793.0,98792.0,0.00104]
[1735183490514,0.040523,98793.0,98792.0,0.00204]
[1735183491524,0.040523,98793.0,98792.0,0.00304]
[1735183492120,0.040523,98793.0,98792.0,0.00204]
[1735183493023,0.040523,98793.0,98792.0,0.00104]
[1735183494417,0.401323,98793.0,98792.0,0.00104]
[1735183498127,0.55242552,98793.0,98792.0,0.18299914]
[1735183499514,0.45056691,98793.0,98792.0,0.00104]
[1735183499715,0.46060122,98793.0,98792.0,4e-05]
[1735183507421,0.040526,98785.0,98784.0,0.18195914]
[1735183507627,0.401326,98785.0,98784.0,0.18195914]
[1735183508024,0.040527,98783.0,98782.0,0.18195914]
[1735183509233,0.040527,98783.0,98782.0,0.18295914]
[1735183509534,0.19160827,98783.0,98782.0,0.001]
[1735183511234,0.040527,98783.0,98782.0,0.001]
[1735183525445,0.15224127,98785.0,98783.0,0.040527]
[1735183525637,0.18126778,98793.0,98790.0,0.040524]
[1735183525837,0.18246779,98793.0,98790.0,0.3608]
[1735183526033,0.18246779,98793.0,98791.0,0.720523]
[1735183526239,0.00120001,98793.0,98791.0,0.720523]
[1735183526746,0.18126778,98795.0,98791.0,0.68]
[1735183526946,0.18126778,98795.0,98794.0,0.040522]
[1735183526947,0.18122778,98795.0,98794.0,0.040522]
[1735183527246,0.18122778,98795.0,98794.0,0.040562]
[1735183527652,0.04052,98801.0,98794.0,0.040562]
[1735183527949,0.04052,98801.0,98800.0,4e-05]
[1735183531951,0.04052,98801.0,98800.0,0.00994614]
[1735183535753,0.00151888,98803.0,98800.0,0.00994614]
[1735183536141,0.00151888,98803.0,98802.0,4e-05]
[1735183548951,0.00151888,98803.0,98802.0,0.68004]
[1735183553963,0.00151888,98803.0,98802.0,0.720559]
[1735183555972,0.00151888,98803.0,98802.0,0.96310337]
[1735183557363,0.00151888,98803.0,98802.0,0.040559]
[1735183559963,0.00151888,98803.0,98802.0,4e-05]
[1735183560160,0.00151888,98803.0,98802.0,0.52939941]
[1735183561670,0.00151888,98803.0,98802.0,4e-05]
[1735183562672,0.1615073,98805.0,98802.0,4e-05]
[1735183563077,0.1615073,98805.0,98804.0,4e-05]
[1735183564481,0.1625073,98805.0,98804.0,4e-05]
[1735183564974,0.1635073,98805.0,98804.0,4e-05]
[1735183565272,0.042518,98805.0,98804.0,4e-05]
[1735183566173,0.002,98805.0,98804.0,4e-05]
[1735183567573,0.12304858,98805.0,98804.0,4e-05]
[1735183568769,0.002,98805.0,98804.0,4e-05]
[1735183570279,0.12304858,98805.0,98804.0,4e-05]
[1735183573480,0.002,98805.0,98804.0,4e-05]
[1735183574077,0.002,98805.0,98801.0,0.30359098]
[1735183574270,0.040522,98794.0,98784.0,4e-05]
[1735183574471,0.401322,98794.0,98784.0,4e-05]
[1735183574674,0.040523,98791.0,98790.0,0.36430918]
[1735183574981,0.040526,98785.0,98784.0,4e-05]
[1735183577584,0.08977315,98785.0,98784.0,4e-05]
[1735183577778,0.08977315,98785.0,98784.0,0.00304]
[1735183577973,0.08977315,98785.0,98784.0,0.00804]
[1735183579984,0.040526,98785.0,98784.0,0.00804]
[1735183582977,0.040526,98785.0,98784.0,0.68804]
[1735183583381,0.040526,98785.0,98784.0,0.00804]
[1735183595494,0.16110909,98785.0,98784.0,0.00804]
[1735183596896,0.040526,98785.0,98784.0,0.00804]
[1735183601094,0.19136769,98785.0,98784.0,0.00804]
[1735183602498,0.040526,98785.0,98784.0,0.00804]
[1735183603801,0.040526,98785.0,98770.0,0.0567]
[1735183604101,0.401332,98771.0,98770.0,0.0567]
[1735183605501,0.401332,98771.0,98770.0,0.0657]
[1735183605900,0.45156589,98771.0,98770.0,0.0657]
[1735183606104,0.45156589,98771.0,98770.0,0.0717]
[1735183607103,0.45156589,98771.0,98770.0,0.0627]
[1735183607305,0.45156589,98771.0,98770.0,0.0717]
[1735183610001,0.040521,98797.0,98770.0,0.0717]
[1735183610209,0.25253268,98787.0,98782.0,0.040527]
[1735183610403,0.21200768,98787.0,98786.0,4e-05]
[1735183610606,0.12710768,98787.0,98786.0,4e-05]
[1735183610908,0.19494699,98791.0,98786.0,4e-05]
[1735183611199,0.19494699,98791.0,98790.0,0.040564]
[1735183611797,0.19342808,98791.0,98790.0,0.040564]
[1735183612006,0.15134578,98791.0,98790.0,0.040564]
[1735183612997,0.15134578,98791.0,98790.0,0.042564]
[1735183613709,0.040522,98794.0,98790.0,0.042564]
[1735183613710,0.040523,98792.0,98790.0,0.00404]
[1735183614100,0.040523,98792.0,98791.0,4e-05]
[1735183615098,0.040523,98792.0,98791.0,0.00204]
[1735183615301,0.040523,98792.0,98791.0,0.18396115]
[1735183616598,0.040523,98792.0,98791.0,0.00204]
[1735183616796,0.05069577,98792.0,98791.0,0.00304]
[1735183617212,0.040523,98792.0,98791.0,0.00304]
[1735183621510,0.040529,98778.0,98777.0,0.01034164]
[1735183621705,0.040529,98778.0,98775.0,0.22245115]
[1735183621907,0.040529,98777.0,98775.0,0.18192115]
[1735183622102,0.040529,98777.0,98771.0,0.3608]
[1735183622103,0.04053,98775.0,98774.0,0.18192115]
[1735183623515,0.040531,98772.0,98771.0,0.54272115]
[1735183625107,0.041531,98772.0,98771.0,0.55172115]
[1735183626009,0.041531,98772.0,98771.0,1.0498]
[1735183626213,0.041531,98772.0,98771.0,1.0548]
[1735183626611,0.041531,98772.0,98771.0,0.694]
[1735183629119,0.001,98772.0,98771.0,0.694]
[1735183629303,0.12086214,98778.0,98771.0,0.694]
[1735183629507,0.09679377,98778.0,98777.0,0.401329]
[1735183629705,0.09679377,98778.0,98777.0,0.401369]
[1735183630304,0.15134578,98786.0,98784.0,0.040526]
[1735183630510,0.15134578,98786.0,98785.0,0.3608]
[1735183630711,0.09065161,98788.0,98785.0,0.36084]
[1735183631104,0.09065161,98788.0,98787.0,4e-05]
[1735183631713,0.040523,98793.0,98787.0,0.68004]
[1735183631915,0.040523,98792.0,98787.0,0.68004]
[1735183632117,0.040523,98792.0,98787.0,0.68]
[1735183633219,0.09065161,98795.0,98789.0,0.040524]
[1735183634016,0.040523,98794.0,98789.0,0.040524]
[1735183634214,0.040523,98794.0,98793.0,0.3608]
[1735183636810,0.040523,98794.0,98793.0,0.3618]
[1735183637521,0.040523,98794.0,98793.0,0.3628]
[1735183645761,0.040523,98794.0,98793.0,0.002]
[1735183651834,0.040523,98794.0,98793.0,0.682]
[1735183653647,0.040523,98794.0,98793.0,0.002]
[1735183662855,0.19186878,98794.0,98793.0,0.002]
[1735183664055,0.040523,98794.0,98793.0,0.002]
[1735183667556,0.040523,98794.0,98793.0,0.24456153]
[1735183668460,0.040523,98794.0,98793.0,0.60536153]
[1735183669153,0.040523,98794.0,98793.0,1.28536153]
[1735183670453,0.040523,98794.0,98793.0,0.60536153]
[1735183672865,0.040523,98794.0,98793.0,0.3628]
[1735183674650,0.15134578,98795.0,98794.0,0.040522]
[1735183675053,0.15134578,98795.0,98794.0,0.772062]
[1735183675661,0.0531,98813.0,98794.0,0.94975691]
[1735183675662,0.15134578,98805.0,98794.0,0.94975691]
[1735183675850,0.15134578,98805.0,98804.0,0.3608]
[1735183676050,0.15134578,98805.0,98804.0,0.36084]
[1735183676252,0.15134578,98805.0,98804.0,0.401358]
[1735183677267,0.15286451,98814.0,98810.0,0.040516]
[1735183677471,0.15286451,98814.0,98804.0,1.04084]
[1735183677472,0.15286451,98814.0,98812.0,0.3608]
[1735183677655,0.15286451,98814.0,98813.0,4e-05]
[1735183678461,0.15486451,98814.0,98813.0,4e-05]
[1735183678767,0.00351873,98814.0,98813.0,4e-05]
[1735183679567,0.00851873,98814.0,98813.0,4e-05]
[1735183679964,0.00351873,98814.0,98813.0,4e-05]
[1735183680168,0.09929793,98814.0,98813.0,4e-05]
[1735183681771,0.00851873,98814.0,98813.0,4e-05]
[1735183682066,0.00851873,98814.0,98813.0,0.36084]
[1735183699979,0.040515,98811.0,98810.0,0.18186815]
[1735183700284,0.00851873,98814.0,98806.0,0.24266579]
[1735183700478,0.00851873,98814.0,98812.0,0.040515]
[1735183700684,0.00851873,98814.0,98813.0,0.36084]
[1735183700976,0.12075561,98822.0,98821.0,0.040511]
[1735183701174,0.15134578,98827.0,98821.0,0.3608]
[1735183701370,0.15134578,98827.0,98826.0,0.040509]
[1735183701371,0.08504741,98827.0,98826.0,0.040509]
[1735183701577,0.08504741,98827.0,98826.0,0.040549]
[1735183701775,0.08504741,98827.0,98826.0,0.401349]
[1735183702766,0.18130322,98834.0,98826.0,0.36084]
[1735183702972,0.12094189,98844.0,98836.0,0.040505]
[1735183703171,0.12094189,98844.0,98842.0,0.3608]
[1735183703975,0.17124189,98844.0,98842.0,0.401302]
[1735183704179,0.0543,98844.0,98843.0,4e-05]
[1735183704571,0.0523,98844.0,98843.0,4e-05]
[1735183704983,0.0483,98844.0,98843.0,4e-05]
[1735183705176,0.0513,98844.0,98843.0,4e-05]
[1735183706077,0.005,98844.0,98843.0,0.00104]
[1735183706577,0.002,98844.0,98843.0,0.00104]
[1735183706776,0.006,98844.0,98843.0,0.68104]
[1735183707479,0.005,98844.0,98843.0,0.68104]
[1735183708077,0.002,98844.0,98843.0,0.68104]
[1735183708276,0.005,98844.0,98843.0,0.68104]
[1735183708978,0.005,98844.0,98843.0,0.78852384]
[1735183710587,0.005,98844.0,98843.0,0.78752384]
[1735183710789,0.004,98844.0,98843.0,0.78752384]
[1735183711486,0.0525,98858.0,98843.0,0.78752384]
[1735183711684,0.0525,98858.0,98857.0,0.401296]
[1735183711987,0.0525,98858.0,98857.0,0.401336]
[1735183712372,0.0525,98858.0,98857.0,1.081336]
[1735183712776,0.006,98858.0,98857.0,1.081336]
[1735183713185,0.004,98858.0,98857.0,1.081336]
[1735183713491,0.006,98858.0,98857.0,1.082336]
[1735183713987,0.006,98858.0,98857.0,1.09245368]
[1735183714291,0.004,98858.0,98857.0,1.09145368]
[1735183714495,0.006,98858.0,98857.0,1.09245368]
[1735183714892,0.005,98858.0,98857.0,1.09245368]
[1735183717881,0.005,98858.0,98857.0,0.41245368]
[1735183718591,0.005,98858.0,98857.0,1.09245368]
[1735183722500,0.005,98858.0,98857.0,1.05195768]
[1735183722798,0.005,98858.0,98857.0,0.00104]
[1735183722997,0.040498,98853.0,98843.0,0.1812439]
[1735183723297,0.0505,98852.0,98844.0,0.68]
[1735183723705,0.090999,98852.0,98844.0,0.68]
[1735183724301,0.040501,98846.0,98844.0,0.68]
[1735183724713,0.040501,98846.0,98844.0,0.44]
[1735183724925,0.040501,98846.0,98844.0,0.36]
[1735183725306,0.040503,98842.0,98837.0,0.00151746]
[1735183725614,0.3608,98841.0,98838.0,0.36]
[1735183726904,0.3628,98841.0,98838.0,0.36]
[1735183727816,0.0513,98840.0,98838.0,0.36]
[1735183728712,0.091804,98840.0,98837.0,0.00151746]
[1735183728913,0.091804,98840.0,98838.0,0.004]
[1735183729413,0.091804,98840.0,98838.0,0.002]
[1735183729718,0.091804,98840.0,98838.0,0.004]
[1735183730112,0.0523,98840.0,98837.0,0.36]
[1735183730306,0.040504,98839.0,98838.0,0.001]
[1735183731708,0.040504,98839.0,98837.0,0.36]
[1735183732617,0.040508,98830.0,98823.0,0.40131]
[1735183732823,0.0486,98829.0,98823.0,0.40131]
[1735183733023,0.0486,98829.0,98826.0,0.1812439]
[1735183733210,0.0486,98829.0,98827.0,0.36]
[1735183733813,0.0486,98829.0,98826.0,0.1812439]
[1735183734321,0.0486,98829.0,98824.0,0.36]
[1735183735221,0.0486,98829.0,98826.0,0.001]
[1735183735723,0.0486,98829.0,98824.0,0.36]
[1735183735924,0.0486,98829.0,98824.0,0.364]
[1735183736625,0.0486,98829.0,98826.0,0.001]
[1735183736926,0.040509,98827.0,98826.0,0.001]
[1735183737127,0.040509,98827.0,98824.0,0.364]
[1735183737637,0.040509,98826.0,98824.0,0.364]
[1735183738225,0.040509,98826.0,98824.0,0.362]
[1735183738725,0.040509,98826.0,98824.0,0.36]
[1735183738926,0.040509,98826.0,98824.0,0.362]
[1735183739426,0.040509,98826.0,98824.0,0.364]
[1735183740026,0.040509,98826.0,98824.0,0.363]
[1735183740218,0.040509,98826.0,98824.0,0.003]
[1735183742326,0.040509,98826.0,98824.0,0.001]
[1735183742632,0.040509,98826.0,98824.0,0.002]
[1735183744430,0.3608,98834.0,98830.0,0.040507]
[1735183744630,0.3608,98834.0,98824.0,0.09049431]
[1735183744817,0.3608,98834.0,98833.0,4e-05]
[1735183745018,0.3608,98834.0,98833.0,0.36004]
[1735183745931,0.3618,98834.0,98833.0,0.36004]
[1735183746432,0.3608,98834.0,98833.0,0.36004]
[1735183746631,0.3618,98834.0,98833.0,0.36004]
[1735183747223,0.3608,98834.0,98833.0,0.36204]
[1735183747427,0.3608,98834.0,98833.0,0.37230586]
[1735183748430,0.3608,98834.0,98833.0,0.01230586]
[1735183749031,0.3608,98834.0,98833.0,0.01330586]
[1735183749534,0.3608,98834.0,98833.0,0.00304]
[1735183751535,0.3608,98834.0,98833.0,0.00204]
[1735183751923,0.3618,98834.0,98833.0,4e-05]
[1735183752330,0.3618,98834.0,98822.0,0.1812439]
[1735183752532,0.40131,98823.0,98822.0,0.1812439]
[1735183753127,0.040512,98819.0,98818.0,0.1812439]
[1735183754733,0.040514,98814.0,98812.0,0.41738405]
[1735183755141,0.040514,98814.0,98812.0,0.45789905]
[1735183755541,0.040514,98814.0,98812.0,0.63914295]
[1735183756041,0.040514,98814.0,98812.0,0.64914295]
[1735183756732,0.040514,98814.0,98812.0,0.42738405]
[1735183763237,0.040514,98814.0,98812.0,0.66920074]
[1735183765048,0.040514,98814.0,98812.0,0.30920074]
[1735183766546,0.12098073,98822.0,98821.0,0.040511]
[1735183766741,0.00308677,98822.0,98821.0,0.401311]
[1735183766941,0.15098621,98828.0,98821.0,0.46613341]
[1735183767243,0.15098621,98828.0,98827.0,0.040549]
[1735183768547,0.040504,98840.0,98831.0,0.040507]
[1735183768745,0.040504,98838.0,98835.0,0.3608]
[1735183769441,0.040504,98838.0,98835.0,0.54268606]
[1735183770237,0.040504,98838.0,98835.0,0.54568606]
[1735183770646,0.040504,98838.0,98835.0,0.404305]
[1735183770940,0.040504,98838.0,98836.0,0.040505]
[1735183772442,0.040504,98838.0,98836.0,0.042505]
[1735183773358,0.040504,98838.0,98836.0,0.040505]
[1735183773650,0.040504,98838.0,98836.0,0.044505]
[1735183776140,0.040504,98838.0,98836.0,0.043505]
[1735183778049,0.040504,98838.0,98836.0,0.042505]
[1735183781141,0.040504,98838.0,98836.0,0.002]
[1735183788159,0.040504,98838.0,98836.0,0.001]
[1735183788859,0.040504,98838.0,98836.0,0.002]
[1735183789459,0.040504,98838.0,98832.0,0.401306]
[1735183789460,0.36231802,98847.0,98835.0,0.18188606]
[1735183789761,0.040505,98837.0,98836.0,0.001]
[1735183790263,0.040505,98837.0,98835.0,0.18188606]
[1735183790560,0.040505,98837.0,98836.0,0.001]
[1735183790761,0.040505,98837.0,98836.0,0.18288606]
[1735183791363,0.040505,98837.0,98836.0,0.18388606]
[1735183791863,0.040505,98837.0,98836.0,0.18288606]
[1735183792056,0.040505,98837.0,98836.0,0.18388606]
[1735183792264,0.040505,98837.0,98836.0,0.002]
[1735183792455,0.040505,98837.0,98836.0,0.001]
[1735183792658,0.040505,98837.0,98836.0,0.002]
[1735183794562,0.040505,98837.0,98836.0,0.003]
[1735183795160,0.040505,98837.0,98836.0,0.002]
[1735183795550,0.040505,98837.0,98836.0,0.001]
[1735183795864,0.040505,98837.0,98836.0,0.002]
[1735183799067,0.040505,98837.0,98836.0,0.001]
[1735183800370,0.340505,98837.0,98823.0,0.36308643]
[1735183800668,0.40131,98824.0,98823.0,0.36308643]
[1735183801058,0.3608,98824.0,98811.0,0.00995407]
[1735183801372,0.040516,98810.0,98809.0,0.67826805]
[1735183801570,0.040519,98803.0,98802.0,0.0006]
[1735183801770,0.040519,98803.0,98801.0,0.00151798]
[1735183802066,0.040519,98803.0,98802.0,0.36]
[1735183802571,0.040519,98803.0,98801.0,0.00151798]
[1735183803073,0.040519,98803.0,98801.0,0.01051798]
[1735183803264,0.040519,98803.0,98801.0,0.02076107]
[1735183803471,0.040519,98803.0,98802.0,0.005]
[1735183804862,0.040519,98803.0,98802.0,0.014]
[1735183805066,0.401319,98803.0,98802.0,0.014]
[1735183805261,0.401319,98803.0,98802.0,0.009]
[1735183806072,0.401319,98803.0,98802.0,0.014]
[1735183809671,0.401319,98803.0,98802.0,0.009]
[1735183809875,0.401319,98803.0,98802.0,0.002]
[1735183810176,0.401319,98803.0,98802.0,0.004]
[1735183810563,0.401319,98803.0,98802.0,0.002]
[1735183811478,0.401319,98803.0,98801.0,0.00151798]
[1735183811668,0.401319,98803.0,98802.0,0.001]
[1735183812176,0.401319,98803.0,98802.0,0.002]
[1735183812865,0.401319,98803.0,98802.0,0.001]
[1735183813477,0.401319,98803.0,98802.0,0.002]
[1735183815169,0.41159856,98803.0,98779.0,0.040528]